Cogmind - Beta 16 @@@ ROGUE MODE // 2025.11.04 @ 03:29:10 Player: KeKe Result: Destroyed by G-34 Mercenary with Small Laser Performance ------------- Evolutions (1) 500 Regions Visited (2) 400 Robots Destroyed (21) 105 Value Destroyed (566) 566 Prototype IDs (1) 20 Alien Tech Used (0) 0 Bonus (0) 0 TOTAL SCORE: 1591 Bonus ------- None Cogmind --------- Core Integrity 0/400 Matter 174/300 Energy 100/100 System Corruption 0% Temperature Cool (6) Movement Core (100) Ox1 Location -9/Materials Parts ------- > --- POWER (1) -------- (None) > --- PROPULSION (2) --- (None) > --- UTILITY (4) ------ Improved Signal Interpreter Targeting Computer > --- WEAPON (2) ------- Great Maul > --- INVENTORY (5) ---- Heavy Ion Engine Peak State ------------ > --- POWER ------------ Ion Engine > --- PROPULSION ------- VTOL Module VTOL Module > --- UTILITY ---------- Improved Signal Interpreter Hacking Suite > --- WEAPON ----------- Great Maul > --- INVENTORY -------- Flight Unit Flight Unit Targeting Computer Heavy Assault Rifle Grenade Launcher [Rating: 14] Favorites ----------- Power Light Ion Engine Engine Light Ion Engine Propulsion Light Treads Treads Light Treads Leg Aluminum Leg Wheel Wheel Flight Unit VTOL Module Utility Large Storage Unit Device Heat Sink Storage Large Storage Unit Processor Improved Signal Interpreter Hackware Hacking Suite Weapon Small Laser Energy Gun Small Laser Energy Cannon Beam Cannon Ballistic Gun Light Assault Rifle Launcher Grenade Launcher Impact Weapon Great Maul Build | -11 -10 -9 ------- Run | Yrd Mat Mat Slots Evolved 2 | . . 2 Power . | . . . Propulsion . | . . . Utility 2 | . . 2 Weapon . | . . . Parts Attached 25 | 3 11 11 Power 2 | . 1 1 Engine 2 | . 1 1 Core . | . . . Reactor . | . . . Propulsion 8 | 2 2 4 Treads 2 | 2 . . Leg . | . . . Wheel 2 | . 2 . Hover . | . . . Flight 4 | . . 4 Utility 6 | . 3 3 Device 2 | . 1 1 Storage 1 | . 1 . Processor 2 | . . 2 Hackware 1 | . 1 . Protection . | . . . Artifact . | . . . Weapon 9 | 1 5 3 Energy Gun 3 | 1 2 . Energy Cannon 1 | . 1 . Ballistic Gun 3 | . 1 2 Ballistic Cannon . | . . . Launcher 1 | . 1 . Special Weapon . | . . . Impact Weapon 1 | . . 1 Slashing Weapon . | . . . Piercing Weapon . | . . . Special Melee Weapon . | . . . Unidentified Prototypes 1 | . . 1 Parts Lost 14 | . 5 9 Power 2 | . 1 1 Propulsion 6 | . 2 4 Utility 2 | . . 2 Weapon 4 | . 2 2 Highest Loss Streak 6 | . 2 6 To Critical Strikes . | . . . Average Backups 6 | 6 8 3 Power 1 | 1 1 . Propulsion 1 | 4 1 . Utility 3 | . 4 . Weapon 1 | 1 1 1 Tool/Special . | . . . Unused Backups 6 | . . 6 Power 1 | . . 1 Propulsion 1 | . . 1 Utility 4 | . . 4 Weapon . | . . . Tool/Special . | . . . Average Slot Usage (%) 77 | . 91 48 Engine 11 | . 13 6 Treads 14 | . 21 . Wheel 4 | . 6 . Flight 3 | . . 11 Device 3 | . 4 1 Storage 9 | . 14 . Processor 4 | . . 13 Hackware 5 | . 3 8 Energy Gun 8 | . 12 . Energy Cannon 3 | . 5 . Ballistic Gun 6 | . 7 3 Peak Build Rating 14 | 6 10 14 Average Rating 7 | 5 7 9 On Entrance 7 | 6 5 10 Avg Prop Armor Cover (%) 12 | . 12 9 Naked Turns . | . . . Heaviest Build 29 | 10 29 29 Greatest Support 40 | 40 40 10 Greatest Overweight (x) 2 | . 2 2 Average Overweight (x) . | . 1 . Largest Inventory Capacity 15 | 8 15 15 Average Capacity 11 | 8 13 5 Most Carried 12 | 6 12 10 Average Carried 6 | 4 8 3 Final Capacity 15 | 8 15 5 Final Carried 10 | 3 10 1 Class Distribution -------------------- 87% | Mutant 12% | Sprinter Dominant Class ---------------- Mutant | -10/Materials Mutant | -9/Materials Resources | -11 -10 -9 ----------- Run | Yrd Mat Mat Matter Collected 609 | 200 378 31 Remotely . | . . . Salvage Created 702 | . 690 12 Parts 38 | . 38 . Haulers Intercepted 1 | . 1 . Recyclers Shooed 1 | . 1 . Parts Field Recycled . | . . . Retrieved Matter . | . . . Parts Self-Destructed . | . . . Prevented . | . . . Parts Restored . | . . . Kills | -11 -10 -9 ------- Run | Yrd Mat Mat Combat Hostiles Destroyed 13 | . 13 . Guns 9 | . 9 . Cannons 4 | . 4 . Classes Destroyed 6 | . 6 . Worker 1 | . 1 . Builder 1 | . 1 . Hauler 1 | . 1 . Operator 3 | . 2 1 Watcher 2 | . 2 . Grunt 13 | . 13 . Best Kill Streak 2 | . 2 1 Combat Bots Only 2 | . 2 . Max Kills in Single Turn 2 | . 2 1 Gunslinging . | . . . Exploded . | . . . Melee . | . . . Uniques/NPCs Destroyed . | . . . Combat | -11 -10 -9 -------- Run | Yrd Mat Mat Hostile Shots Fired 168 | . 84 84 Missed 50 | . 19 31 Hits 118 | . 65 53 Melee 4 | . . 4 Projectile 114 | . 65 49 Critical Strikes 2 | . . 2 Damage Taken 1652 | . 830 822 Core 533 | . 128 405 Absorbed by Shields . | . . . Core Remaining (%) 74 | 100 48 . Volleys Fired 91 | . 86 5 Largest 2 | . 2 1 Hottest 100 | . 100 30 Shots Fired 150 | . 145 5 Gun 111 | . 107 4 Cannon 38 | . 38 . Launcher 1 | . . 1 Special . | . . . Kinetic 52 | . 48 4 Thermal 87 | . 87 . Explosive 1 | . . 1 Electromagnetic 10 | . 10 . Robot Hit Streak 11 | . 11 3 Robot Miss Streak 4 | . 4 1 Penetration Max . | . . . Secondary Targets 1 | . 1 . Max Gunslinging Chain 1 | . 1 . Shots Hit Robots 97 | . 92 5 Core Hits 41 | . 37 4 Critical Kills . | . . . Critical Parts Destroyed . | . . . Critical Strikes . | . . . Melee Attacks 5 | . . 5 Impact 5 | . . 5 Slashing . | . . . Piercing . | . . . Sneak Attacks 1 | . . 1 Combat Hostiles . | . . . Follow-up Attacks . | . . . Damage Inflicted 1469 | . 1199 270 Guns 756 | . 715 41 Cannons 437 | . 437 . Explosions 198 | . 47 151 Melee 78 | . . 78 Ramming . | . . . Kinetic 285 | . 244 41 Thermal 846 | . 846 . Explosive 151 | . . 151 Electromagnetic 109 | . 109 . Impact 78 | . . 78 Slashing . | . . . Piercing . | . . . Highest Corruption . | . . . Average Corruption . | . . . Corruption Purged . | . . . Corruption Blocked . | . . . Overload Shots . | . . . Overflow Damage 54 | . 16 38 Projectiles 16 | . 16 . Explosions . | . . . Melee 38 | . . 38 Knockbacks . | . . . Impact . | . . . Kinetic . | . . . Secondary . | . . . Self-Inflicted Damage 71 | . 32 39 Shots 2 | . 1 1 Rammed . | . . . Targets Rammed . | . . . Kicked . | . . . Crushed . | . . . Highest Temperature 338 | . 338 17 Average Temperature 77 | . 78 11 Received Heat Transfer 651 | . 411 240 Effects 1 | . 1 . Energy Bleed 1 | . 1 . Siege Activations . | . . . Martial Activations . | . . . Shielding Activations . | . . . Robots Disrupted . | . . . Combat Hostiles . | . . . Robots Corrupted . | . . . Combat Hostiles . | . . . Parts Fried 3 | . 1 2 Impact Corruptions 2 | . . 2 Robots Melted . | . . . Combat Hostiles . | . . . Parts Melted 3 | . 3 . Heat Transferred 1850 | . 1850 . Parts Sabotaged . | . . . Parts Stolen . | . . . Parts Stripped . | . . . Power Chain Reactions 1 | . 1 . Alert | -11 -10 -9 ------- Run | Yrd Mat Mat Maximum Alert Level 1 | . . 1 Low Security (%) 88 | 100 100 65 Level 1 11 | . . 34 Level 2 . | . . . Level 3 . | . . . Level 4 . | . . . Level 5 . | . . . High Security . | . . . Max Security . | . . . Peak Influence 355 | . 117 355 Initial 42 | . . 42 Average 74 | . 35 156 Influence Increases 1214 | . 439 775 Destroy 0b10 Robot/C 260 | . 260 . Destroy 0b10 Robot/NC 40 | . 35 5 Destroy Leader 66 | . 66 . Successful Hack 36 | . 15 21 Select Force Hacks 30 | . . 30 Disable Machine 15 | . 15 . Destroy Structure 17 | . 3 14 Partial Spotted 120 | . 15 105 Lose Combat Pursuer 630 | . 30 600 Influence Decreases 859 | . 338 521 Entered New Map 59 | . . 59 Time Decay 560 | . 298 262 Search Patrol Dispatched 100 | . . 100 Lost Part 130 | . 40 90 Lost Ally 10 | . . 10 Squads Dispatched 8 | . 4 4 Investigation 4 | . 2 2 Extermination . | . . . Reinforcement 4 | . 2 2 Assault . | . . . Garrison . | . . . Intercept . | . . . Searches Triggered 1 | . . 1 Construction Impeded . | . . . Haulers Reinforced . | . . . Active Scanning Responses . | . . . Cargo Convoy Interrupts . | . . . Stealth | -11 -10 -9 --------- Run | Yrd Mat Mat Distress Signals 6 | . 2 4 Communications Jammed . | . . . Distress Signals . | . . . Times Spotted 94 | . 30 64 Peak Tracking Total 15 | . 5 15 Tactical Retreats 16 | . 2 14 Traps | -11 -10 -9 ------- Run | Yrd Mat Mat Traps Triggered 2 | . 1 1 Indirectly . | . . . Trap Hack Attempts . | . . . Triggered . | . . . Disarmed . | . . . Reprogrammed . | . . . Reused . | . . . Traps Extracted . | . . . Installed . | . . . Triggered . | . . . Machines | -11 -10 -9 ---------- Run | Yrd Mat Mat Machines Disabled 2 | . 2 . Max in Single Turn 1 | . 1 . Machines Repaired . | . . . Machines Dismantled . | . . . Machines Sabotaged . | . . . Overloaded Fab Kills . | . . . Hacking | -11 -10 -9 --------- Run | Yrd Mat Mat Machines Accessed 14 | . 4 10 Terminals 12 | . 4 8 Fabricators . | . . . Repair Stations . | . . . Recycling Units 1 | . . 1 Scanalyzers 1 | . . 1 Garrison Access . | . . . Total Hacks 34 | . 8 26 Successful 22 | . 3 19 Failed 11 | . 5 6 Catastrophic 1 | . 1 . Database Lockouts 1 | . . 1 Manual 31 | . 8 23 Terminals 31 | . 8 23 Fabricators . | . . . Repair Stations . | . . . Recycling Units 1 | . . 1 Scanalyzers 2 | . . 2 Garrison Access . | . . . Terminal Hacks 3 | . . 3 Robot Analysis 1 | . . 1 Terminal Index 1 | . . 1 Locate Traps 1 | . . 1 Fabricator Hacks . | . . . Repair Station Hacks . | . . . Recycling Unit Hacks . | . . . Scanalyzer 1 | . . 1 Retrieve Study 1 | . . 1 Garrison Access Hacks . | . . . Unauthorized Hacks 18 | . 3 15 Terminals 17 | . 3 14 Assimilate 1 | . . 1 Botnet 9 | . 3 6 Operators 1 | . . 1 Skim 6 | . . 6 Fabricators . | . . . Repair Stations . | . . . Recycling Units 1 | . . 1 Tunnel 1 | . . 1 Scanalyzers . | . . . Garrison Access . | . . . Data Cores Recovered . | . . . Used . | . . . Hacking Detections 8 | . 3 5 Full Trace Events . | . . . Feedback Events . | . . . Feedback Blocked . | . . . Robot Schematics Acquired . | . . . Robots Built . | . . . Authchips . | . . . Time . | . . . Total Robot Build Rating . | . . . Part Schematics Acquired . | . . . Parts Built . | . . . Authchips . | . . . Time . | . . . Total Part Build Rating . | . . . Part Studies Acquired 1 | . . 1 Parts Repaired . | . . . Time . | . . . Parts Recycled . | . . . Recycled Matter . | . . . Retrieved Matter . | . . . Retrieved Components . | . . . Parts Scanalyzed . | . . . Part Schematics Acquired . | . . . Parts Damaged . | . . . Bothacking | -11 -10 -9 ------------ Run | Yrd Mat Mat Used RIF Installer . | . . . Robots Hacked . | . . . Non-combat . | . . . Combat . | . . . Robot Hacks Applied . | . . . Relay Couplers Released . | . . . Fabnet Peak Effective % . | . . . Robots Rewired . | . . . Allies Hacked . | . . . Hacks Repelled . | . . . Allies | -11 -10 -9 -------- Run | Yrd Mat Mat Total Allies 1 | . . 1 Largest Group 1 | . . 1 Highest-Rated Group 10 | . . 10 Highest-Rated Ally 10 | . . 10 Total Orders . | . . . Ally Attacks . | . . . Total Damage . | . . . Kills . | . . . Allies Corrupted 1 | . . 1 Allies Melted . | . . . Intel | -11 -10 -9 ------- Run | Yrd Mat Mat Active Infowar (turns) 72 | . . 72 Structural 72 | . . 72 Robot Analysis Total 1 | . . 1 Derelict Logs Recovered . | . . . Drone Launches . | . . . Drone Recoveries . | . . . Exploration | -11 -10 -9 ------------- Run | Yrd Mat Mat Turns Passed 1850 | 6 1249 595 Spaces Moved 1831 | 1 671 1159 Core 409 | . . 409 Treads 322 | 1 321 . Legs . | . . . Wheels 354 | . 350 4 Hover . | . . . Flight 746 | . . 746 Fastest Speed 32 | 160 110 32 Average Speed 74 | 160 133 40 Slowest Speed 160 | 160 160 150 Overloaded Moves . | . . . Propulsion Burnouts . | . . . Robots Hopped 9 | . . 9 Potential Cave-ins . | . . . Cave-ins Triggered . | . . . Exploration Rate (%) 55 | 2 80 84 Regions Visited 2 Branch Regions . Pre-discovered Areas 1 | . . 1 Known Exits Taken . | . . . Unknown Exits Taken 2 | 1 1 . Scrap Searched . | . . . Spaces Dug 4 | . . 4 Terrain Destroyed 16 | . 2 14 Melee 4 | . . 4 Projectile . | . . . AOE 12 | . 2 10 Terrain Rammed . | . . . Walls Destroyed . | . . . Machines Disabled . | . . . Actions | -11 -10 -9 --------- Run | Yrd Mat Mat Total 2154 | 7 885 1262 Wait 166 | . 104 62 Move 1811 | . 670 1141 Hop 9 | . . 9 Pick Up 16 | . 10 6 Fast Attach 12 | . 6 6 Attach 17 | 2 5 10 Detach 7 | . 2 5 Swap 3 | 1 . 2 Drop 17 | 4 2 11 Fire 91 | . 86 5 Melee 5 | . . 5 Ram . | . . . Kick . | . . . Crush . | . . . Escape Stasis . | . . . Rewire . | . . . Trap . | . . . Miscellaneous . | . . . Route ------- -11/Scrapyard -10/Materials (discovered 4 exits: *Mat x2 / [*Min x2]) -9/Materials (discovered 4 exits: *Mat x3 / *Min) History --------- Turn | Location | Event 7 | -11/Scrapyard | Discovered new exit (range 0) 7 | -11/Scrapyard | Entered Materials 292 | -10/Materials | Discovered new exit (range 5) 308 | -10/Materials | Build established: Mutant 462 | -10/Materials | Discovered new exit (range 16) 637 | -10/Materials | Discovered new exit (range 3) 1073 | -10/Materials | Core integrity fell below 50% 1112 | -10/Materials | Discovered new exit (range 16) 1256 | -10/Materials | Entered another Materials area 1256 | -9/Materials | Evolved 2 slots: Utility x2 1329 | -9/Materials | Central database locked down 1380 | -9/Materials | Discovered new exit (range 10) 1474 | -9/Materials | Discovered new exit (range 16) 1581 | -9/Materials | Core integrity fell below 50% 1605 | -9/Materials | Identified exit to Materials 1615 | -9/Materials | Lost 6 parts (1p2n1u2w) 1656 | -9/Materials | Search patrols dispatched 1664 | -9/Materials | Identified exit to Mines 1739 | -9/Materials | Core integrity fell below 20% 1838 | -9/Materials | Learned Storage machine intel 1851 | -9/Materials | Destroyed by G-34 Mercenary with Small Laser Last Messages --------------- 01684_ W-16 Scout sends out distress signal. 01732_ >> SKIM: Exit location confirmed. 01738_ Hacking Suite destroyed. 01745_ K-01 Serf collects debris. 01789_ >> SKIM: Exit location confirmed. 01790_ K-01 Serf collects debris. 01828_ Sneak attack on O-16 Technician. 01828_ Destroyed Lgt. Ion Engine. 01828_ Destroyed Datajack. 01828_ O-16 Technician system corrupted by crushing effect. 01828_ Hover Unit fried. 01828_ Hacking Suite fried. 01828_ O-16 Technician destroyed. 01831_ Acquired 12 matter. 01835_ Triggered Alarm Trap. 01835_ An alarm sounds. 01835_ ALERT: Alarm triggered, dispatching investigation squad. 01838_ >> SKIM: Stored Storage machine intel. 01842_ C-30 ARC bursts open, deploying its payload. 01842_ S-10 Pest unfolds itself. Map ----- +----------------------------------------------------+ | ######+### #??# # #?????#! """"" | | ## #??# ##### #####?????# """"" | | "" ## """ """ #??# #???###?????????# """"" | | R """ ## """ """ #??# #???????????????#[ """"" | | "" """ ## """ """ #??# #???????????????# """"" | | """ ############??# #???????????????# """"" | | #?????????????# ########????????#= ? | | #?????????????# # [ #????????######?? | | #?????????????# # #???????????????? | | ###### ##??????######## # #???????????????? | | #########??????# +% + #???????????????? | | #############??# # # #???????????????? | | ## ######??# """= # # #???????????????? | | //###?# """ # #"######???????????????? | | //###?# """ #g #"#########????????????? | | ** ##?# #g # #????????????? | | ## ** ##?######## # "T" #????????????? | | #### ## == ##????????# ag/ """ #????????????? | | #### ## == ##????????# g # #????????????? | | #### ### # ##????????# ###########????????????? | | ## # #########?# ##?????????????????????? | | ## # # ?# T#??##################?? | | T + # " # ##??# % #?? | | ## # # """ # u#???# ############## #?? | | ## # # ! "" + #####s#????# #??# #?? | | ### ## "" # "" # @ sss #????# #??# #?? | | ### ## Y" # # < #### #????# #??# #?? | | ] # ## "" # ?# #??# ??# #??# #?? | | # ## # ?#u###??#! !## #??# #?? | | # ##############??# #????##!!!!### #??# #?? | | # ##############??# #?????######?# #??# #?? | | # ##############??# ############## #??# #?? | | ### ##??# + #??# #?? | | ### ########### ##??# #############+##### #?? | | ########### ##??# #?????# #?? | | ####+############ ##??# #?????# #####+#### #?? | | #### ##### ##?????????? ??# ### | | #### ##### #####??????? ??+ | | + +? ***?###### | | #################### #? ***??????? | | ################???????? *** ?????? | | = ##??????????????????????#######?????? | | ###############??????????????????????????????????? | | | | | | | | | | | | | | | +----------------------------------------------------+ Best States ------------- Heat Dissipation 35 Energy Generation 14 Energy Capacity 280 Matter Stores 300 Matter Capacity 300 Sight Range 16 Terrain Scan Density 10 Evasion (%) 63 Targeting Accuracy 5 Recoil Reduction 2 Offensive Hacking 10 Item Schematics ----------------- None Robot Schematics ------------------ None Fabricated ------------ Nothing Repaired ---------- Nothing Studied --------- VTOL Module | -9/Materials | Hacked Alien Tech Used ----------------- None Achievements -------------- Suspicious Challenges ------------ None Game ------ Seed AdvancedTeslaTerrabomb Manual? 0 Play Time 00:27:58 Cumulative 142.0 hours Start 2025.11.04 @ 02:56:34 End 2025.11.04 @ 03:29:10 Sessions 1 Manual Loads 0 Difficulty Rogue Special Mode None Game No. 142 Rogue 142 Adventurer 0 Explorer 0 Win Type - Total 1 Types 1/0/0/0/0/0/0/0/0/0 Lore% 65 Gallery% 54 Achievement% 40 Wizard Run 0 Options --------- Layout 0 ASCII 0 Keyboard 0 Movement Mouse Keybinds 0 Fullscreen 2 Font 18/X11 Map View 76x50 Zoom Use 0% Tactical HUD 1 Map Filters NONE Filters NONE Steam 1 RUN: f49dc8a6-db7e-45af-93e2-b6c8894bfe40